bitfinex/quotes_ETHUSD_20240822
["timestamp","ask_amount","ask_price","bid_price","bid_amount"]
[1724341773407,3.85089,2596.8,2596.3,2.89545]
[1724341774052,3.85107,2596.7,2596.3,2.89545]
[1724341774305,3.85096,2596.8,2596.3,2.3595]
[1724341774505,3.85084,2596.9,2596.3,2.3595]
[1724341774740,3.85055,2597.1,2596.4,6.105]
[1724341774917,3.85025,2597.3,2596.6,2.2536]
[1724341775145,3.85025,2597.3,2596.5,0.6105]
[1724341775146,3.85025,2597.3,2596.7,2.2536]
[1724341775347,7.69992,2597.5,2596.7,6.10463]
[1724341775521,7.69992,2597.5,2596.8,6.10447]
[1724341775522,3.84996,2597.5,2596.8,6.10447]
[1724341775923,3.84996,2597.5,2596.9,2.3322]
[1724341776118,3.84996,2597.5,2597.0,0.618307]
[1724341776670,2.77,2597.8,2597.1,2.4061]
[1724341776807,3.84902,2598.1,2597.3,2.4061]
[1724341777004,3.84902,2598.1,2597.4,0.07698834]
[1724341777207,3.84902,2598.1,2597.5,2.4717]
[1724341777869,3.84927,2597.9,2597.5,2.4717]
[1724341778076,3.84947,2597.8,2597.5,2.4717]
[1724341779522,3.84899,2598.1,2597.2,9.8018]
[1724341779771,3.84965,2597.7,2597.2,9.8018]
[1724341780156,3.84965,2597.7,2597.2,10.22720052]
[1724341780357,3.84936,2597.9,2597.2,10.22720052]
[1724341780541,3.84936,2597.9,2597.2,7.80540052]
[1724341780895,3.84906,2598.1,2597.4,2.28]
[1724341781173,3.84881,2598.3,2597.4,2.28]
[1724341781326,3.84881,2598.3,2597.6,2.28]
[1724341781527,3.84855,2598.4,2597.6,2.28]
[1724341781776,3.84875,2598.3,2597.6,2.28]
[1724341781983,3.84912,2598.0,2597.6,2.28]
[1724341782360,3.84948,2597.8,2597.6,2.28]
[1724341782566,3.84955,2597.7,2597.6,2.28]
[1724341782757,3.84948,2597.8,2597.6,2.28]
[1724341783376,3.84955,2597.7,2597.6,2.28]
[1724341783896,3.84948,2597.8,2597.6,2.28]
[1724341784594,7.69898,2597.8,2597.6,2.28]
[1724341785008,3.84948,2597.8,2597.6,2.28]
[1724341786083,3.84922,2598.0,2597.6,2.28]
[1724341786490,3.84886,2598.2,2597.6,2.28]
[1724341786706,3.84918,2598.0,2597.6,2.28]
[1724341787008,3.849,2598.1,2597.6,2.892998]
[1724341787510,7.69783,2598.2,2597.6,2.892998]
[1724341787923,3.84891,2598.2,2597.6,2.892998]
[1724341788573,3.84897,2598.1,2597.6,2.892998]
[1724341788783,3.84912,2598.0,2597.6,2.892998]
[1724341788960,3.84912,2598.0,2597.6,2.28]
[1724341789565,3.66376136,2598.0,2597.6,2.28]
[1724341789996,3.84951,2597.8,2597.6,2.28]
[1724341791029,3.84886,2598.2,2597.6,2.28]
[1724341791030,3.84955,2597.7,2597.6,2.28]
[1724341792024,3.84951,2597.8,2597.6,2.28]
[1724341792323,3.84927,2597.9,2597.6,2.28]
[1724341792719,3.84918,2598.0,2597.6,2.28]
[1724341793271,3.84926,2597.9,2597.6,2.28]
[1724341793816,3.84955,2597.7,2597.6,2.28]
[1724341794618,3.84955,2597.7,2597.3,2.4971]
[1724341797436,3.85122,2596.6,2596.0,2.2549]
[1724341797934,3.85082,2596.9,2596.0,2.2549]
[1724341798288,3.85111,2596.7,2596.0,2.2549]
[1724341798481,3.85096,2596.8,2596.1,1.733911]
[1724341799793,3.85096,2596.8,2596.1,5.585821]
[1724341800122,3.8512,2596.6,2596.1,1.733911]
[1724341800325,3.85064,2597.0,2596.3,3.85153]
[1724341800530,3.85064,2597.0,2596.4,2.3989]
[1724341800732,3.8509,2596.8,2596.4,2.3989]
[1724341800895,3.85064,2597.0,2596.5,0.23989]
[1724341801429,11.24009,2597.4,2596.4,2.3989]
[1724341801430,0.55,2596.9,2596.4,2.3989]
[1724341801630,3.85106,2596.7,2596.4,2.3989]
[1724341801785,3.85158,2596.4,2596.0,2.4453]
[1724341803313,3.85127,2596.6,2596.0,2.4453]
[1724341803633,3.85092,2596.8,2596.1,0.98253]
[1724341803843,7.39,2597.1,2596.2,2.2903]
[1724341804043,7.39,2597.1,2596.3,3.85155]
[1724341804243,11.24052,2597.1,2596.4,2.2903]
[1724341804446,11.24052,2597.1,2596.5,0.999339]
[1724341804651,7.39,2597.1,2596.5,4.850649]
[1724341804951,7.39,2597.1,2596.5,0.999339]
[1724341805140,7.39,2597.1,2596.5,4.850649]
[1724341805317,7.39,2597.1,2596.6,2.2747]
[1724341805521,3.84994,2597.5,2596.8,3.85084]
[1724341805736,3.84975,2597.6,2597.0,2.2747]
[1724341806043,3.84988,2597.5,2597.0,2.2747]
[1724341806245,3.85,2597.4,2597.0,2.2747]
[1724341806546,3.8507,2597.0,2596.7,2.2747]
[1724341806745,3.85089,2596.8,2596.7,2.50217]
[1724341807045,3.8507,2597.0,2596.3,2.2747]
[1724341807250,3.85114,2596.7,2596.3,2.2747]
[1724341807412,7.70163,2596.9,2596.3,2.2747]
[1724341807612,3.8508,2596.9,2596.4,0.22747]
[1724341807831,2.4459,2597.5,2596.3,2.2747]
[1724341808030,3.85076,2596.9,2596.3,2.2747]
[1724341808196,3.85128,2596.6,2596.3,2.2747]
[1724341808403,3.85134,2596.5,2596.3,2.2747]
[1724341808640,7.70223,2596.7,2596.3,2.2747]
[1724341808842,3.85119,2596.6,2596.3,2.50217]
[1724341809046,3.85106,2596.7,2596.3,2.2747]
[1724341809214,7.70168,2596.9,2596.3,2.2747]
[1724341809419,3.85083,2596.9,2596.3,2.2747]
[1724341809614,3.85083,2596.9,2596.3,6.12632]
[1724341809828,3.85083,2596.9,2596.3,2.2747]
[1724341810449,3.85022,2597.3,2596.4,0.612639]
[1724341810647,3.84996,2597.5,2596.7,2.2614]
[1724341810947,3.85019,2597.3,2596.7,2.2614]
[1724341811246,3.85008,2597.4,2596.7,6.11242]
[1724341811464,3.85008,2597.4,2596.8,0.611242]
[1724341811618,3.85024,2597.3,2596.8,0.611242]
[1724341811824,3.85024,2597.3,2596.7,2.2614]
[1724341812019,3.85008,2597.4,2596.7,2.2614]
[1724341812283,3.84962,2597.7,2597.0,2.2614]
[1724341812417,6.6195,2597.8,2597.0,2.2614]
[1724341812622,10.46903,2597.8,2597.0,6.11197]
[1724341812822,3.84957,2597.7,2597.0,6.11197]
[1724341813053,3.84915,2598.0,2597.2,2.2614]
[1724341813324,3.84974,2597.6,2597.2,2.2614]
[1724341813519,3.85002,2597.4,2597.2,2.2614]
[1724341813719,3.85002,2597.4,2596.9,2.3028]
[1724341814070,7.7374,2597.9,2596.9,2.3028]
[1724341814218,3.85058,2597.1,2596.6,2.3028]
[1724341814426,3.85022,2597.3,2596.7,0.23028]
[1724341814667,3.8503,2597.2,2596.7,0.23028]
[1724341814868,0.55,2597.1,2596.6,2.3028]
[1724341815036,0.55,2597.1,2596.3,9.742]
[1724341815037,3.8508,2596.9,2596.3,9.742]
[1724341815242,3.85142,2596.5,2596.0,7.38]
[1724341815443,3.85175,2596.3,2595.9,2.362]
[1724341815641,3.85136,2596.5,2596.0,0.2362]
[1724341816268,3.85149,2596.4,2596.0,0.2362]
[1724341816570,3.85136,2596.5,2596.0,0.2362]
[1724341816872,3.85217,2596.0,2595.6,2.4436]
[1724341817173,3.85196,2596.1,2595.6,2.4436]
[1724341817330,3.85196,2596.1,2595.7,0.24436]
[1724341817531,3.85137,2596.5,2595.7,0.24436]
[1724341817760,3.85172,2596.3,2595.7,0.24436]
[1724341818277,3.85203,2596.1,2595.6,2.4436]
[1724341818845,3.85168,2596.3,2595.6,2.4436]
[1724341819078,0.55,2596.2,2595.6,2.4436]
[1724341819304,0.55,2596.2,2595.7,0.24436]
[1724341819777,4.4018,2596.2,2595.7,0.24436]
[1724341820200,3.852,2596.1,2595.7,0.24436]
[1724341820401,0.55,2596.0,2595.3,5.4095]
[1724341820728,7.70466,2595.9,2595.3,2.4095]
[1724341820928,0.55,2595.8,2595.3,2.4095]
[1724341821131,3.85217,2596.0,2595.3,2.4095]
[1724341821481,4.40184,2596.2,2595.3,2.4095]
[1724341821681,3.85177,2596.3,2595.4,4.83179]
[1724341821947,3.85182,2596.2,2595.4,4.83179]
[1724341822275,3.85232,2595.9,2595.4,0.97895]
[1724341822911,8.25404,2596.1,2595.4,0.97895]
[1724341823127,3.85208,2596.0,2595.4,0.97895]
[1724341823300,3.85223,2595.9,2595.4,0.97895]
[1724341823502,3.85223,2595.9,2595.5,0.338845]
[1724341823696,3.85231,2595.9,2595.3,2.4095]
[1724341824033,0.55,2596.1,2595.3,2.4095]
[1724341824034,3.85263,2595.7,2595.3,2.4095]
[1724341825092,2.4072,2596.0,2595.0,2.5346078]
[1724341825288,3.85298,2595.4,2595.0,2.5346078]
[1724341825557,3.85273,2595.6,2595.0,2.78806858]
[1724341825759,3.85243,2595.8,2595.0,6.64154858]
[1724341826061,3.85283,2595.5,2595.0,0.1251078]
[1724341826206,3.85322,2595.3,2595.0,0.1251078]
[1724341826381,3.85287,2595.5,2595.0,0.1251078]
[1724341826638,0.55,2595.9,2595.1,2.3594]
[1724341826839,3.85266,2595.7,2595.2,0.24845078]
[1724341827142,0.55,2595.9,2595.1,2.3594]
[1724341827404,3.85306,2595.4,2595.1,2.3594]
[1724341827678,7.70551,2595.6,2595.0,0.1251078]
[1724341827879,0.55,2595.5,2595.0,0.1251078]
[1724341828379,3.85241,2595.8,2595.0,3.9785678]
[1724341828584,0.55,2595.7,2595.1,0.39785678]
[1724341828877,4.40262,2595.7,2595.0,0.1251078]
[1724341829265,0.55,2595.7,2595.1,2.2756]
[1724341829468,3.85186,2596.2,2595.2,2.2756]
[1724341829668,3.85178,2596.2,2595.6,2.2756]
[1724341829837,3.85209,2596.0,2595.6,2.2756]
[1724341830040,3.85214,2596.0,2595.6,2.2756]
[1724341830304,3.85186,2596.2,2595.6,2.2756]
[1724341830505,3.85209,2596.0,2595.6,2.2756]
[1724341830802,3.85193,2596.1,2595.7,0.22756]
[1724341830970,2.77,2596.3,2595.7,0.22756]
[1724341831304,4.40183,2596.2,2595.7,0.22756]
[1724341832008,7.39,2597.3,2596.2,3.85168]
[1724341832172,3.8504,2597.2,2596.4,3.85145]
[1724341832385,7.7008,2597.2,2596.4,3.85138]
[1724341832582,3.8504,2597.2,2596.4,3.92839909]
[1724341832919,3.8498,2597.6,2596.8,2.3729]
[1724341833057,3.84967,2597.7,2596.9,0.622383]
[1724341833258,3.84972,2597.6,2596.9,0.622383]
[1724341833523,3.84989,2597.5,2596.9,0.622383]
[1724341833657,3.84971,2597.6,2597.0,0.2995283]
[1724341833861,3.84967,2597.7,2597.0,0.2995283]
[1724341834075,3.85044,2597.2,2596.8,2.3729]
[1724341834274,3.85063,2597.0,2596.4,2.3729]
[1724341834669,6.84961,2597.7,2596.4,2.3729]
[1724341834885,3.85058,2597.1,2596.4,2.3729]
[1724341835120,3.85071,2597.0,2596.5,0.2758068]
[1724341835707,3.85058,2597.1,2596.5,0.2758068]
[1724341835909,3.85019,2597.3,2596.5,0.2758068]
[1724341836079,4.40032,2597.2,2596.5,0.2758068]
[1724341836629,3.85044,2597.1,2596.5,0.2758068]
[1724341836808,3.85075,2596.9,2596.5,0.2758068]
[1724341837010,0.55,2597.0,2596.5,0.2758068]
[1724341837186,7.70048,2597.3,2596.5,0.2758068]
[1724341837380,0.55,2597.2,2596.5,4.1270368]
[1724341837624,0.55,2597.2,2596.6,0.64999368]
[1724341837843,3.84992,2597.5,2596.6,0.64999368]
[1724341838026,3.84961,2597.7,2596.9,3.85064]
[1724341838428,3.84942,2597.8,2597.0,3.85047]
[1724341839000,3.84942,2597.8,2596.9,3.85064]
[1724341839196,3.8496,2597.7,2597.0,1.123064]
[1724341839394,3.84929,2597.9,2597.0,1.123064]
[1724341839395,3.84929,2597.9,2597.1,6.30102]
[1724341839628,3.84929,2597.9,2597.2,3.85028]
[1724341839796,3.84929,2597.9,2597.3,0.07699462]
[1724341840001,7.69866,2597.9,2597.3,1.02282946]
[1724341840526,3.84957,2597.7,2597.3,1.02282946]
[1724341840727,3.84957,2597.7,2597.1,2.4506]
[1724341840930,3.85002,2597.4,2597.1,2.4506]
[1724341841245,3.85011,2597.4,2596.8,7.38]
[1724341841433,3.84971,2597.6,2596.8,11.23077]
[1724341841631,0.55,2597.5,2596.9,1.355947]
[1724341841817,0.55,2597.5,2596.8,7.38]
[1724341842012,3.85002,2597.4,2596.8,7.38]
[1724341842613,7.70011,2597.4,2596.8,7.38]
[1724341842813,3.85002,2597.4,2596.8,7.38]
[1724341843150,3.85002,2597.4,2596.8,8.80097737]
[1724341844155,7.70021,2597.4,2596.8,7.38]
[1724341844337,0.55,2597.3,2596.8,7.38]
[1724341844705,3.85008,2597.4,2596.8,7.38]
[1724341844906,3.84976,2597.6,2596.8,7.38]
[1724341845101,3.84976,2597.6,2596.9,3.85073]
[1724341845309,0.55,2597.5,2597.0,1.123073]
[1724341845528,3.8501,2597.4,2596.8,7.38]
[1724341846268,3.85008,2597.4,2597.0,2.4724]
[1724341846568,3.85054,2597.1,2596.7,2.4113]
[1724341847154,3.85054,2597.1,2596.4,9.7913]
[1724341847359,3.85083,2596.9,2596.4,11.07043]
[1724341847537,3.85083,2596.9,2596.4,9.7913]
[1724341847738,0.55,2597.0,2596.4,13.64276]
[1724341847945,3.84992,2597.5,2596.6,2.4113]
[1724341848139,7.69991,2597.5,2596.7,4.09207]
[1724341848321,3.84992,2597.5,2596.7,7.943]
[1724341848524,3.84992,2597.5,2596.7,7.94301]
[1724341848525,3.85,2597.4,2596.7,7.94301]
[1724341848865,3.85,2597.4,2596.7,4.09206]
[1724341849173,7.69989,2597.5,2596.7,7.94302]
[1724341849484,3.84992,2597.5,2596.8,4.886302]
[1724341849631,3.84964,2597.7,2597.0,3.85052]
[1724341849979,3.84951,2597.8,2597.0,3.85052]
[1724341850158,3.84958,2597.7,2597.1,0.610992]
[1724341850545,3.84933,2597.9,2597.2,2.4297]
[1724341850745,3.84933,2597.9,2597.2,6.27991]
[1724341851077,3.84979,2597.6,2597.2,2.4297]
[1724341851682,7.69959,2597.6,2597.2,2.4297]
[1724341852057,3.84979,2597.6,2597.2,2.4297]
[1724341852256,3.84978,2597.6,2597.2,2.4297]
[1724341852455,3.85,2597.4,2596.9,2.263]
[1724341852793,3.85,2597.4,2596.0,3.85202]
[1724341852794,3.85098,2596.8,2596.4,7.38]
[1724341853097,3.85084,2596.9,2596.3,2.263]
[1724341853311,7.70171,2596.9,2596.4,0.996638]
[1724341853609,3.85084,2596.9,2596.4,0.996638]
[1724341853774,3.85129,2596.6,2596.3,2.263]
[1724341853971,0.55,2596.8,2596.3,2.263]
[1724341854352,3.85111,2596.7,2596.3,2.263]
[1724341854562,0.55,2596.8,2596.3,2.263]
[1724341854793,4.401,2596.8,2596.3,2.263]
[1724341855343,3.85105,2596.7,2596.3,2.263]
[1724341855583,0.55,2596.8,2596.3,3.2273]
[1724341856666,3.8506,2597.0,2596.3,7.07892]
[1724341856872,3.85053,2597.1,2596.3,7.07892]
[1724341857087,0.55,2597.0,2596.3,7.07892]
[1724341857300,3.85076,2596.9,2596.3,3.2273]
[1724341857511,4.40061,2597.0,2596.4,0.32273]
[1724341857809,3.85076,2596.9,2596.4,0.32273]
[1724341857951,3.85052,2597.1,2596.4,0.32273]
[1724341858353,7.70109,2597.1,2596.5,2.4612]
[1724341858755,3.85052,2597.1,2596.5,2.4612]
[1724341859103,7.70109,2597.1,2596.6,0.663541]
[1724341859273,3.85061,2597.0,2596.5,2.4612]
[1724341859660,3.85052,2597.1,2596.5,2.4612]
[1724341859978,3.85024,2597.3,2596.5,6.31239]
[1724341860174,3.85024,2597.3,2596.6,3.85117]
[1724341860407,3.85032,2597.2,2596.5,6.31251]
[1724341860593,3.85024,2597.3,2596.6,4.514684]
[1724341860759,3.8503,2597.2,2596.6,4.514684]
[1724341861154,3.85067,2597.0,2596.6,0.663524]
[1724341861387,3.85079,2596.9,2596.5,2.4612]
[1724341861590,3.85075,2596.9,2596.5,2.4612]
[1724341861784,3.85062,2597.0,2596.5,2.4612]
[1724341862188,3.85041,2597.2,2596.5,2.4612]
[1724341862189,3.85036,2597.2,2596.6,3.85116]
[1724341862403,3.85036,2597.2,2596.7,0.631236]
[1724341862607,3.85015,2597.3,2596.7,0.631236]
[1724341862811,0.55,2597.2,2596.7,0.631236]
[1724341863103,3.0,2597.8,2596.7,0.631236]
[1724341863104,3.8498,2597.6,2596.9,3.85066]
[1724341863309,3.84987,2597.5,2597.0,0.624346]
[1724341863509,9.19169,2598.3,2597.3,3.85001]
[1724341863510,2.3319,2598.3,2597.3,3.85001]
[1724341863678,3.84893,2598.2,2597.4,2.703601]
[1724341864326,3.84893,2598.2,2597.5,0.07698899]
[1724341864546,3.84858,2598.4,2597.5,3.84981]
[1724341864759,3.84867,2598.3,2597.5,7.69956]
[1724341864961,3.84867,2598.3,2597.5,3.84975]
[1724341865260,3.84882,2598.2,2597.6,0.6553351]
[1724341866413,3.84882,2598.2,2597.7,2.3125]
[1724341866414,7.69775,2598.2,2597.7,2.3125]
[1724341866758,3.84924,2598.0,2597.7,2.3125]
[1724341867051,3.84924,2598.0,2597.4,0.385001]
[1724341867052,3.84941,2597.8,2597.3,9.6925]
[1724341867269,3.84979,2597.6,2597.3,2.3125]
[1724341867415,3.84979,2597.6,2597.0,10.361346]
[1724341867613,3.84979,2597.6,2597.1,0.8004346]
[1724341867860,0.55,2597.9,2597.1,0.8004346]
[1724341867861,0.55,2597.9,2597.2,2.3761]
[1724341868064,3.84917,2598.0,2597.2,6.22629]
[1724341868276,3.84911,2598.0,2597.3,0.77966438]
[1724341868570,3.84911,2598.0,2597.3,0.70267246]
[1724341868715,3.8489,2598.2,2597.5,2.4381]
[1724341868912,3.84904,2598.1,2597.5,2.4381]
[1724341869117,3.8489,2598.2,2597.5,2.4381]
[1724341869317,3.8489,2598.2,2597.6,0.628809]
[1724341869735,3.84905,2598.1,2597.6,0.628809]
[1724341870134,3.0,2598.5,2597.5,2.4381]
[1724341870333,3.84944,2597.8,2597.5,2.4381]
[1724341870962,3.84965,2597.7,2597.3,7.38]
[1724341871231,3.84975,2597.6,2597.3,7.38]
[1724341871436,3.84975,2597.6,2597.2,2.4381]
[1724341872448,7.69953,2597.6,2597.2,2.4381]
[1724341872760,3.84975,2597.6,2597.2,2.4381]
[1724341873272,3.84946,2597.8,2597.2,2.68191]
[1724341873582,3.84925,2598.0,2597.2,6.53209]
[1724341873874,3.84919,2598.0,2597.3,3.85011]
[1724341874019,3.84939,2597.9,2597.2,2.68191]
[1724341874224,3.84939,2597.9,2597.3,0.653222]
[1724341874864,3.84946,2597.8,2597.3,0.653222]
[1724341875073,3.84956,2597.7,2597.2,2.4381]
[1724341875238,7.69921,2597.7,2597.2,2.4381]
[1724341875464,7.69923,2597.7,2597.2,2.4381]
[1724341875640,3.84972,2597.6,2597.2,2.4381]
[1724341875840,3.84985,2597.5,2597.2,2.4381]
[1724341876350,7.69981,2597.5,2597.2,2.4381]
[1724341876556,6.29578,2597.9,2596.6,2.2875]
[1724341876851,3.85069,2597.0,2596.6,2.2875]
[1724341877656,7.7014,2597.0,2596.6,2.2875]
[1724341878382,3.85069,2597.0,2596.6,2.2875]
[1724341880087,3.85016,2597.3,2596.6,6.36733]
[1724341880289,0.55,2597.2,2596.6,6.36733]
[1724341880462,3.85059,2597.0,2596.6,2.2875]
[1724341882799,0.55,2596.7,2596.3,7.38]
[1724341883201,0.55,2596.7,2596.4,2.263]
[1724341883354,7.7011,2597.1,2596.4,6.11445]
[1724341883554,3.85076,2596.9,2596.4,2.263]
[1724341883770,3.85054,2597.1,2596.4,3.612468]
[1724341883771,3.8506,2597.0,2596.4,3.612468]
[1724341884104,3.85054,2597.1,2596.4,7.463868]
[1724341884602,3.85022,2597.3,2596.4,3.612468]
[1724341884825,2.77,2597.6,2597.0,3.85057]
[1724341885021,3.84966,2597.7,2597.1,0.385057]
[1724341885022,3.8496,2597.7,2597.1,0.385057]
[1724341885152,3.8496,2597.7,2597.2,2.2925]
[1724341885509,7.69925,2597.7,2597.2,2.2925]
[1724341885654,9.19132,2598.6,2597.2,2.2925]
[1724341885655,3.84932,2597.9,2597.2,2.2925]
[1724341885855,3.84905,2598.1,2597.4,2.265]
[1724341886085,3.84928,2597.9,2597.4,2.265]
[1724341886289,3.84905,2598.1,2597.4,2.265]
[1724341886513,7.69756,2598.3,2597.4,6.11497]
[1724341886700,7.69756,2598.3,2597.4,9.96486]
[1724341886701,3.8489,2598.2,2597.4,9.96486]
[1724341886879,3.84875,2598.3,2597.6,2.25]
[1724341887121,3.84882,2598.2,2597.6,2.25]
[1724341887259,3.84875,2598.3,2597.6,2.25]
[1724341887609,3.84842,2598.5,2597.6,2.25]
[1724341887610,3.84842,2598.5,2597.6,6.09961]
[1724341887818,3.84842,2598.5,2597.7,3.926416]
[1724341887978,3.84824,2598.6,2597.8,6.95397674]
[1724341888326,3.84837,2598.5,2597.8,6.95397674]
[1724341888618,3.84837,2598.5,2597.8,3.0276026]
[1724341888753,3.84852,2598.4,2597.8,3.0276026]
[1724341889356,9.1907,2599.0,2597.8,3.0276026]
[1724341889357,2.4263,2598.6,2597.8,2.25]
[1724341889558,3.84886,2598.2,2597.8,2.25]
[1724341890761,3.84911,2598.0,2597.4,2.4463]
[1724341891718,7.69835,2598.0,2597.4,2.4463]
[1724341892018,3.84911,2598.0,2597.4,2.4463]
[1724341892167,3.84935,2597.9,2597.4,2.4463]
[1724341892517,7.69833,2598.0,2597.4,2.4463]
[1724341892673,7.69833,2598.0,2597.4,3.075959]
[1724341892674,0.55,2597.9,2597.4,3.075959]
[1724341893121,3.84943,2597.8,2597.4,2.4463]
[1724341893255,0.55,2597.7,2597.2,2.2531]
[1724341893659,4.3996,2597.7,2597.2,2.2531]
[1724341894212,0.55,2597.7,2597.2,2.2531]
[1724341894638,3.84995,2597.5,2597.2,2.2531]
[1724341894800,0.55,2597.4,2597.0,2.2531]
[1724341895334,3.84899,2598.1,2597.0,6.32899]
[1724341895335,3.84964,2597.7,2597.0,6.32899]
[1724341895554,7.6993,2597.7,2597.0,6.32899]
[1724341895854,3.85018,2597.3,2597.0,2.2531]
[1724341896325,0.55,2597.2,2597.0,2.2531]
[1724341896526,3.84971,2597.6,2597.0,2.2531]
[1724341896728,3.84963,2597.7,2597.0,2.2531]
[1724341896936,3.84989,2597.5,2597.0,2.2531]
[1724341897096,3.85025,2597.3,2596.5,2.4799]
[1724341897297,3.85058,2597.1,2596.5,3.02789]
[1724341897740,3.85068,2597.0,2596.5,2.4799]
[1724341897942,3.85058,2597.1,2596.5,2.4799]
[1724341898147,0.55,2597.2,2596.5,6.33114]
[1724341898320,3.84982,2597.6,2596.7,3.85095]
[1724341898522,0.55,2597.5,2596.7,3.85095]
[1724341898715,3.85,2597.4,2596.8,2.3637]
[1724341898952,3.85,2597.4,2596.8,6.21459]
[1724341899105,0.55,2597.5,2596.8,6.21459]
[1724341899508,0.55,2597.5,2596.8,6.21451]
[1724341899746,3.85002,2597.4,2596.8,6.21451]
[1724341900004,3.85025,2597.3,2596.8,2.3637]
[1724341900203,3.0387,2597.5,2596.8,2.3637]
[1724341900525,3.0387,2597.5,2596.3,2.2793]
[1724341900526,3.85079,2596.9,2596.3,2.2793]
[1724341900720,3.85079,2596.9,2596.4,0.613098]
[1724341901448,3.8505,2597.1,2596.4,4.464558]
[1724341901752,3.85022,2597.3,2596.5,2.2793]
[1724341901992,0.55,2597.2,2596.6,3.85111]
[1724341902146,3.84991,2597.5,2596.7,6.13025]
[1724341902342,3.84991,2597.5,2596.8,4.92601573]
[1724341902578,7.39,2597.6,2597.0,2.4303]
[1724341902889,3.84969,2597.7,2597.0,2.4303]
[1724341903187,3.84969,2597.7,2597.0,6.28083]
[1724341903391,3.84973,2597.6,2597.0,2.4303]
[1724341903700,3.84973,2597.6,2597.0,3.78286117]
[1724341903841,3.84986,2597.5,2597.0,3.78286117]
[1724341904046,3.0,2597.8,2597.0,2.4303]
[1724341904391,3.85037,2597.2,2597.0,2.4303]
[1724341904573,3.85019,2597.3,2597.0,2.4303]
[1724341904772,0.55,2597.2,2597.0,2.4303]
[1724341904956,0.55,2597.2,2596.8,7.38]
[1724341904957,4.40032,2597.2,2596.8,7.38]
[1724341906870,8.25072,2597.2,2596.6,2.3292]
[1724341907065,4.40032,2597.2,2596.6,4.070388]
[1724341907585,0.55,2597.2,2596.7,3.85103]
[1724341907797,7.70016,2597.4,2596.6,7.921498]
[1724341907798,4.40018,2597.3,2596.6,7.921498]
[1724341908360,3.8503,2597.2,2596.6,7.921498]
[1724341908615,3.8503,2597.2,2596.7,0.7921498]
[1724341910161,0.55,2597.3,2596.7,0.7921498]
[1724341910162,4.40015,2597.3,2596.7,0.7921498]
[1724341910462,3.85034,2597.2,2596.7,0.7921498]
[1724341910803,0.55,2597.3,2596.8,2.4672]
[1724341911108,3.84973,2597.6,2597.0,3.85057]
[1724341911404,3.84973,2597.6,2597.1,0.770118]
[1724341911590,7.69955,2597.6,2597.1,0.770118]
[1724341911898,3.84973,2597.6,2596.9,3.85061]
[1724341912126,3.84957,2597.7,2597.0,3.85059]
[1724341912473,3.84972,2597.6,2597.0,3.85059]
[1724341912700,3.84972,2597.6,2596.8,13.69799]
[1724341912916,3.85001,2597.4,2596.9,1.44901398]
[1724341913231,3.84972,2597.6,2596.9,5.29964398]
[1724341913705,3.84971,2597.6,2597.0,3.85051]
[1724341914215,3.84958,2597.7,2597.0,3.85051]
[1724341914572,3.84933,2597.9,2597.0,3.85051]
[1724341914573,3.84933,2597.9,2597.2,3.85029]
[1724341914757,0.55,2597.8,2597.3,0.612069]
[1724341914957,3.84987,2597.5,2597.1,2.2704]
[1724341916904,3.85001,2597.4,2596.9,3.93401398]
[1724341917106,3.84987,2597.5,2596.9,3.93401398]
[1724341917476,3.85017,2597.3,2596.9,3.93401398]
[1724341918309,3.84987,2597.5,2596.9,3.93401398]
[1724341918310,3.85005,2597.4,2596.9,3.93401398]
[1724341920620,4.39943,2597.8,2596.9,2.485]
[1724341920621,0.55,2597.3,2596.9,2.485]
[1724341920925,3.8503,2597.2,2596.8,7.38]
[1724341921218,3.85046,2597.1,2596.8,7.38]
[1724341921377,3.8503,2597.2,2596.8,7.38]
[1724341921576,3.8503,2597.2,2596.7,2.3626]
[1724341921990,4.40052,2597.1,2596.7,2.3626]
[1724341922530,0.55,2597.1,2596.7,2.3626]
[1724341923296,4.40051,2597.1,2596.7,2.3626]
[1724341923499,3.85061,2597.0,2596.7,2.3626]
[1724341924150,0.55,2597.1,2596.5,7.38]
[1724341924491,0.55,2597.1,2595.6,0.80084738]
[1724341924492,3.85136,2596.5,2596.0,2.2806]
[1724341924621,3.85078,2596.9,2596.0,2.2806]
[1724341924622,3.85111,2596.7,2596.0,2.2806]
[1724341924822,3.85086,2596.9,2596.0,6.745896]
[1724341925027,7.70219,2596.7,2596.0,6.745876]
[1724341925278,3.85106,2596.7,2596.0,6.745876]
[1724341925443,0.55,2596.6,2596.0,6.745876]
[1724341926070,3.0,2596.8,2596.0,6.745876]
[1724341926272,3.0,2596.8,2596.2,3.85178]
[1724341926565,3.0,2596.8,2596.0,6.13254]
[1724341926566,3.85106,2596.7,2596.0,6.13254]
[1724341926788,3.85141,2596.5,2596.0,2.2806]
[1724341926954,0.55,2596.4,2596.0,2.2806]
[1724341927156,0.55,2596.4,2596.0,2.893893]
[1724341927526,3.85111,2596.7,2596.0,2.893893]
[1724341927927,3.0,2596.8,2596.2,3.85174]
[1724341928127,3.85069,2597.0,2596.3,2.3985]
[1724341928558,3.85069,2597.0,2596.3,6.25008]